fUST/lending_fUST_20250524
["ID","MTS","AMOUNT","RATE_DAILY","PERIOD"]
[362193725,1748082633022,-430.0,0.00021917,3]
[362193726,1748082633032,-430.0,0.00021917,3]
[362193727,1748082633041,-430.0,0.00021917,3]
[362193728,1748082633052,-430.0,0.00021917,3]
[362193729,1748082633062,-430.0,0.00021917,3]
[362193730,1748082633071,-430.0,0.00021917,3]
[362193731,1748082633079,-430.0,0.00021917,3]
[362193732,1748082633089,-430.0,0.00021917,3]
[362193733,1748082633099,-430.0,0.00021917,3]
[362193734,1748082633107,-430.0,0.00021917,3]
[362193735,1748082633117,-430.0,0.00021917,3]
[362193736,1748082633126,-440.86767488,0.00021917,3]
[362193737,1748082633137,-207.81000839,0.00021917,3]
[362193738,1748082633146,-490.0,0.00021917,3]
[362193739,1748082633156,-430.0,0.00021917,3]
[362193740,1748082633165,-370.0,0.00021917,3]
[362193741,1748082633175,-430.0,0.00021917,3]
[362193742,1748082633184,-430.0,0.00021917,3]
[362193743,1748082633327,-403.63718952,0.00021917,3]
[362193744,1748082633338,-406.70531427,0.00021917,3]
[362193745,1748082633348,-298.93746281,0.00021917,3]
[362193746,1748082633359,-430.0,0.00021917,3]
[362193747,1748082633368,-213.60431757,0.00021917,3]
[362193748,1748082633378,-430.0,0.00021917,3]
[362193749,1748082633388,-562.58357322,0.00021917,3]
[362193750,1748082633399,-292.50793432,0.00021917,3]
[362193751,1748082633409,-405.47427713,0.00021917,3]
[362193752,1748082633419,-430.0,0.00021917,3]
[362193753,1748082633428,-430.0,0.00021917,3]
[362193754,1748082633439,-430.0,0.00021917,3]
[362193755,1748082633448,-430.0,0.00021917,3]
[362193756,1748082633458,-430.0,0.00021917,3]
[362193757,1748082633468,-430.0,0.00021917,2]
[362193758,1748082633478,-450.0,0.00021917,3]
[362193759,1748082633487,-430.0,0.00021917,3]
[362193760,1748082633496,-430.0,0.00021917,3]
[362193761,1748082633506,-430.0,0.00021917,3]
[362193762,1748082633516,-450.0,0.00021917,3]
[362193763,1748082633526,-430.0,0.00021917,3]
[362193764,1748082633536,-430.0,0.00021917,3]
[362193765,1748082633545,-430.0,0.00021917,3]
[362193766,1748082633555,-430.0,0.00021917,3]
[362193767,1748082633565,-430.0,0.00021917,3]
[362193768,1748082633575,-430.0,0.00021917,3]
[362193769,1748082633586,-430.0,0.00021917,3]
[362193770,1748082633596,-430.0,0.00021917,3]
[362193771,1748082633606,-356.87892435,0.00021917,3]
[362193772,1748082633616,-300.0,0.00021917,3]
[362193773,1748082633626,-430.0,0.00021917,3]
[362193774,1748082633635,-212.02972206,0.00021917,3]
[362193775,1748082633644,-400.0,0.00021917,3]
[362193776,1748082633654,-430.0,0.00021917,3]
[362193777,1748082633664,-430.0,0.00021917,3]
[362193778,1748082633673,-430.0,0.00021917,3]
[362193779,1748082633683,-430.0,0.00021917,3]
[362193780,1748082633693,-500.0,0.00021917,3]
[362193781,1748082633702,-500.0,0.00021917,3]
[362193782,1748082633712,-500.0,0.00021917,3]
[362193783,1748082633722,-430.0,0.00021917,3]
[362193784,1748082633731,-430.0,0.00021917,3]
[362193785,1748082633741,-430.0,0.00021917,3]
[362193786,1748082633751,-430.0,0.00021917,3]
[362193787,1748082633761,-430.0,0.00021917,3]
[362193788,1748082633771,-430.0,0.00021917,3]
[362193789,1748082633780,-430.0,0.00021917,3]
[362193790,1748082633790,-430.0,0.00021917,3]
[362193791,1748082633800,-430.0,0.00021917,3]
[362193792,1748082633809,-430.0,0.00021917,3]
[362193793,1748082633820,-430.0,0.00021917,3]
[362193794,1748082633830,-400.99500957,0.00021917,3]
[362193795,1748082633839,-430.0,0.00021917,3]
[362193796,1748082633849,-430.0,0.00021917,3]
[362193797,1748082633859,-430.0,0.00021917,3]
[362193798,1748082633869,-430.0,0.00021917,3]
[362193799,1748082633878,-430.0,0.00021917,3]
[362193800,1748082633887,-430.0,0.00021917,3]
[362193801,1748082633897,-399.1749064,0.00021917,3]
[362193802,1748082633912,-430.0,0.00021917,3]
[362193803,1748082633931,-430.0,0.00021917,3]
[362193804,1748082633941,-430.0,0.00021917,3]
[362193805,1748082633951,-430.0,0.00021917,3]
[362193806,1748082633960,-264.89659329,0.00021917,3]
[362193807,1748082633971,-430.0,0.00021917,3]
[362193808,1748082633981,-190.50456212,0.00021917,3]
[362193809,1748082633993,-430.0,0.00021917,3]
[362193810,1748082634002,-426.98881176,0.00021917,3]
[362193811,1748082634012,-430.0,0.00021917,3]
[362193812,1748082634022,-430.0,0.00021917,3]
[362193813,1748082634031,-430.0,0.00021917,3]
[362193814,1748082634041,-430.0,0.00021917,3]
[362193815,1748082634051,-450.0,0.00021917,3]
[362193816,1748082634061,-450.0,0.00021917,3]
[362193817,1748082634070,-430.0,0.00021917,3]
[362193818,1748082634080,-430.0,0.00021917,3]
[362193819,1748082634090,-430.0,0.00021917,3]
[362193820,1748082634100,-430.0,0.00021917,3]
[362193821,1748082634110,-450.0,0.00021917,3]
[362193822,1748082634119,-430.0,0.00021917,3]
[362193823,1748082634130,-454.90788779,0.00021917,3]
[362193824,1748082634141,-400.0,0.00021917,3]
[362193825,1748082634151,-450.0,0.00021917,3]
[362193826,1748082634160,-400.0,0.00021917,3]
[362193827,1748082634170,-430.0,0.00021917,3]
[362193828,1748082634180,-430.0,0.00021917,3]
[362193829,1748082634190,-437.06,0.00021917,3]
[362193830,1748082634200,-430.0,0.00021917,3]
[362193831,1748082634210,-433.17532737,0.00021917,3]
[362193832,1748082634221,-420.51,0.00021917,3]
[362193833,1748082634232,-430.0,0.00021917,3]
[362193834,1748082634242,-430.0,0.00021917,3]
[362193835,1748082634251,-430.82047742,0.00021917,3]
[362193836,1748082634261,-430.0,0.00021917,3]
[362193837,1748082634271,-501.5237928,0.00021917,3]
[362193838,1748082634280,-430.0,0.00021917,3]
[362193839,1748082634290,-430.0,0.00021917,3]
[362193840,1748082634300,-430.0,0.00021917,3]
[362193841,1748082634310,-430.0,0.00021917,3]
[362193842,1748082634321,-430.0,0.00021917,3]
[362193843,1748082634331,-430.0,0.00021917,3]
[362193844,1748082634342,-430.0,0.00021917,3]
[362193845,1748082634351,-430.0,0.00021917,3]
[362193846,1748082634361,-430.0,0.00021917,3]
[362193847,1748082634371,-430.0,0.00021917,3]
[362193848,1748082634380,-430.0,0.00021917,3]
[362193849,1748082634390,-430.0,0.00021917,3]
[362193850,1748082634400,-430.0,0.00021917,3]
[362193851,1748082634409,-543.71,0.00021917,3]
[362193852,1748082634419,-430.0,0.00021917,3]
[362193853,1748082634428,-430.0,0.00021917,3]
[362193854,1748082634438,-430.0,0.00021917,3]
[362193855,1748082634447,-432.63233871,0.00021917,3]
[362193856,1748082634457,-430.0,0.00021917,3]
[362193857,1748082634467,-430.0,0.00021917,3]
[362193858,1748082634477,-430.0,0.00021917,3]
[362193859,1748082634486,-430.0,0.00021917,3]
[362193860,1748082634495,-430.0,0.00021917,3]
[362193861,1748082634504,-430.0,0.00021917,3]
[362193862,1748082634514,-451.16714129,0.00021917,3]
[362193863,1748082634523,-430.0,0.00021917,3]
[362193864,1748082634533,-430.0,0.00021917,3]
[362193865,1748082634542,-430.0,0.00021917,3]
[362193866,1748082634552,-430.0,0.00021917,3]
[362193867,1748082634562,-430.0,0.00021917,3]
[362193868,1748082634571,-431.43277652,0.00021917,3]
[362193869,1748082634581,-500.0,0.00021917,3]
[362193870,1748082634590,-430.0,0.00021917,3]
[362193871,1748082634600,-430.0,0.00021917,3]
[362193872,1748082634610,-430.0,0.00021917,3]
[362193873,1748082634619,-430.0,0.00021917,3]
[362193874,1748082634629,-615.14,0.00021917,3]
[362193875,1748082634639,-430.0,0.00021917,3]
[362193876,1748082634648,-430.0,0.00021917,3]
[362193877,1748082634658,-430.0,0.00021917,3]
[362193878,1748082634669,-979.6,0.00021917,3]
[362193879,1748082634678,-430.0,0.00021917,3]
[362193880,1748082634687,-430.0,0.00021917,3]
[362193881,1748082634697,-430.73,0.00021917,3]
[362193882,1748082634707,-450.0,0.00021917,3]
[362193883,1748082634716,-430.0,0.00021917,3]
[362193884,1748082634725,-382.79154148,0.00021917,3]
[362193885,1748082634735,-430.0,0.00021917,3]
[362193886,1748082634744,-430.0,0.00021917,3]
[362193887,1748082634753,-430.0,0.00021917,3]
[362193888,1748082634762,-430.0,0.00021917,3]
[362193889,1748082634772,-430.0,0.00021917,3]
[362193890,1748082634782,-430.0,0.00021917,3]
[362193891,1748082634792,-1004.80827646,0.00021917,3]
[362193892,1748082634801,-457.65,0.00021917,3]
[362193893,1748082634811,-430.0,0.00021917,3]
[362193894,1748082634820,-430.0,0.00021917,3]
[362193895,1748082634829,-430.0,0.00021917,3]
[362193896,1748082634838,-430.0,0.00021917,3]
[362193897,1748082634848,-401.13627249,0.00021917,3]
[362193898,1748082634858,-430.0,0.00021917,3]
[362193899,1748082634868,-430.0,0.00021917,3]
[362193900,1748082634879,-430.0,0.00021917,3]
[362193901,1748082634888,-430.0,0.00021917,3]
[362193902,1748082634898,-572.91,0.00021917,3]
[362193903,1748082634907,-421.6836438,0.00021917,3]
[362193904,1748082634916,-430.0,0.00021917,3]
[362193905,1748082634928,-430.0,0.00021917,3]
[362193906,1748082634939,-430.0,0.00021917,3]
[362193907,1748082634949,-430.0,0.00021917,3]
[362193908,1748082634958,-430.0,0.00021917,3]
[362193909,1748082634969,-430.0,0.00021917,3]
[362193910,1748082634978,-430.0,0.00021917,3]
[362193911,1748082634988,-401.85675123,0.00021917,3]
[362193912,1748082635002,-430.0,0.00021917,3]
[362193913,1748082635011,-430.0,0.00021917,3]
[362193914,1748082635020,-430.0,0.00021917,3]
[362193915,1748082635030,-430.0,0.00021917,3]
[362193916,1748082635040,-430.0,0.00021917,3]
[362193917,1748082635050,-430.0,0.00021917,3]
[362193918,1748082635059,-331.25,0.00021917,3]
[362193919,1748082635068,-430.0,0.00021917,3]
[362193920,1748082635077,-430.0,0.00021917,3]
[362193921,1748082635088,-430.0,0.00021917,3]
[362193922,1748082635098,-430.0,0.00021917,3]
[362193923,1748082635107,-430.0,0.00021917,3]
[362193924,1748082635117,-430.0,0.00021917,3]
[362193925,1748082635127,-430.0,0.00021917,3]
[362193926,1748082635137,-490.0,0.00021917,3]
[362193927,1748082635146,-500.0,0.00021917,3]
[362193928,1748082635156,-430.0,0.00021917,3]
[362193929,1748082635165,-430.0,0.00021917,3]
[362193930,1748082635175,-430.0,0.00021917,3]
[362193931,1748082635185,-430.0,0.00021917,3]
[362193932,1748082635194,-430.0,0.00021917,3]
[362193933,1748082635203,-430.0,0.00021917,3]
[362193934,1748082635213,-430.0,0.00021917,3]
[362193935,1748082635223,-450.0,0.00021917,3]
[362193936,1748082635232,-500.0,0.00021917,3]
[362193937,1748082635241,-500.0,0.00021917,3]
[362193938,1748082635250,-430.0,0.00021917,3]
[362193939,1748082635260,-430.0,0.00021917,3]
[362193940,1748082635269,-430.0,0.00021917,3]
[362193941,1748082635278,-292.48,0.00021917,3]
[362193942,1748082635287,-431.02342355,0.00021917,3]
[362193943,1748082635297,-430.0,0.00021917,3]
[362193944,1748082635306,-430.0,0.00021917,3]
[362193945,1748082635316,-450.0,0.00021917,3]
[362193946,1748082635326,-430.0,0.00021917,3]
[362193947,1748082635336,-430.0,0.00021917,3]
[362193948,1748082635346,-350.34277277,0.00021917,3]
[362193949,1748082635355,-400.90681113,0.00021917,3]
[362193950,1748082635365,-430.0,0.00021917,3]
[362193951,1748082635374,-430.0,0.00021917,3]
[362193952,1748082635383,-177.81475002,0.00021917,3]
[362193953,1748082635393,-430.0,0.00021917,3]
[362193954,1748082635402,-430.0,0.00021917,3]
[362193955,1748082635412,-430.0,0.00021917,3]
[362193956,1748082635422,-430.0,0.00021917,3]
[362193957,1748082635431,-430.0,0.00021917,3]
[362193958,1748082635441,-430.0,0.00021917,3]
[362193959,1748082635451,-420.0,0.00021917,3]
[362193960,1748082635461,-430.0,0.00021917,3]
[362193961,1748082635471,-430.0,0.00021917,3]
[362193962,1748082635480,-430.0,0.00021917,3]
[362193963,1748082635489,-430.0,0.00021917,3]
[362193964,1748082635498,-430.0,0.00021917,3]
[362193965,1748082635507,-466.14,0.00021917,3]
[362193966,1748082635518,-430.0,0.00021917,3]
[362193967,1748082635527,-430.0,0.00021917,3]
[362193968,1748082635537,-475.62,0.00021917,3]
[362193969,1748082635546,-430.0,0.00021917,3]
[362193970,1748082635555,-304.23633894,0.00021917,3]
[362193971,1748082635565,-430.0,0.00021917,3]
[362193972,1748082635574,-430.0,0.00021917,3]
[362193973,1748082635583,-430.0,0.00021917,3]
[362193974,1748082635593,-514.21,0.00021917,3]
[362193975,1748082635602,-430.0,0.00021917,3]
[362193976,1748082635611,-430.0,0.00021917,3]
[362193977,1748082635621,-400.0,0.00021917,3]
[362193978,1748082635630,-430.0,0.00021917,3]
[362193979,1748082635640,-430.0,0.00021917,3]
[362193980,1748082635649,-275.59575239,0.00021917,3]
[362193981,1748082635659,-430.0,0.00021917,3]
[362193982,1748082635668,-430.0,0.00021917,3]
[362193983,1748082635677,-430.0,0.00021917,3]
[362193984,1748082635687,-430.0,0.00021917,3]
[362193985,1748082635696,-430.0,0.00021917,3]
[362193986,1748082635708,-810.92,0.00021917,3]
[362193987,1748082635717,-430.0,0.00021917,3]
[362193988,1748082635727,-400.0,0.00021917,3]
[362193989,1748082635736,-430.0,0.00021917,3]
[362193990,1748082635746,-430.0,0.00021917,3]
[362193991,1748082635755,-430.0,0.00021917,3]
[362193992,1748082635764,-430.0,0.00021917,3]
[362193993,1748082635880,-430.0,0.00021917,3]
[362193994,1748082635889,-430.0,0.00021917,3]
[362193995,1748082635898,-430.0,0.00021917,3]
[362193996,1748082635907,-400.86320496,0.00021917,3]
[362193997,1748082635916,-430.0,0.00021917,3]
[362193998,1748082635928,-942.19,0.00021917,3]
[362193999,1748082635937,-400.0,0.00021917,3]
[362194000,1748082635947,-430.0,0.00021917,3]
[362194001,1748082635957,-430.0,0.00021917,3]
[362194002,1748082635967,-430.0,0.00021917,3]
[362194003,1748082635976,-480.91743094,0.00021917,3]
[362194004,1748082635986,-3683.93,0.00021917,2]
[362194005,1748082635995,-430.0,0.00021917,3]
[362194006,1748082636005,-430.0,0.00021917,3]
[362194007,1748082636017,-400.0,0.00021917,3]
[362194008,1748082636026,-430.0,0.00021917,3]
[362194009,1748082636035,-430.0,0.00021917,3]
[362194010,1748082636044,-294.35367001,0.00021917,3]
[362194011,1748082636053,-430.0,0.00021917,3]
[362194012,1748082636062,-430.0,0.00021917,3]
[362194013,1748082636070,-430.0,0.00021917,3]
[362194014,1748082636079,-430.0,0.00021917,3]
[362194015,1748082636089,-430.0,0.00021917,3]
[362194016,1748082636099,-608.82,0.00021917,3]
[362194017,1748082636108,-430.0,0.00021917,3]
[362194018,1748082636118,-500.0,0.0002192,2]
[362194019,1748082636130,-3246.0,0.00022,2]
[362194020,1748082636140,-60244.29791304,0.00022,2]
[362194021,1748082636151,-164.0,0.00022,2]
[362194022,1748082636160,-422.929492,0.00022084,2]
[362194023,1748082636169,-2818.1,0.00022084,2]
[362194024,1748082636179,-2818.1,0.00022084,2]
[362194025,1748082636188,-2818.1,0.00022084,2]
[362194026,1748082636197,-2818.1,0.00022084,2]
[362194027,1748082636207,-443.09559878,0.00022091,2]
[362194028,1748082636215,-160.0,0.00022168,2]
[362194029,1748082636224,-894.64583333,0.00022168,2]
[362194030,1748082636233,-160.0,0.00022168,2]
[362194031,1748082636243,-160.0,0.00022168,2]
[362194032,1748082636253,-160.0,0.00022168,2]
[362194033,1748082636264,-160.0,0.00022168,2]
[362194034,1748082636274,-160.0,0.00022168,2]
[362194035,1748082636283,-548.72,0.0002219,3]
[362194036,1748082636293,-173.51695332,0.00022191,3]
[362194037,1748082636302,-430.0,0.00022191,3]
[362194038,1748082636312,-430.0,0.00022191,3]
[362194039,1748082636321,-430.0,0.00022191,3]
[362194040,1748082636330,-432.00431272,0.00022191,3]
[362194041,1748082636341,-430.0,0.00022191,3]
[362194042,1748082636350,-430.0,0.00022191,3]
[362194043,1748082636359,-233.25082279,0.00022191,3]
[362194044,1748082636369,-430.0,0.00022191,3]
[362194045,1748082636379,-430.0,0.00022191,2]
[362194046,1748082636388,-430.0,0.00022191,3]
[362194047,1748082636396,-430.0,0.00022191,3]
[362194048,1748082636406,-430.0,0.00022191,3]
[362194049,1748082636415,-546.13,0.00022191,3]
[362194050,1748082636424,-430.0,0.00022191,3]
[362194051,1748082636433,-430.0,0.00022191,3]
[362194052,1748082636442,-449.78849894,0.00022191,3]
[362194053,1748082636451,-430.0,0.00022191,3]
[362194054,1748082636460,-430.0,0.00022191,3]
[362194055,1748082636469,-430.0,0.00022191,3]
[362194056,1748082636478,-200.34,0.00022191,3]
[362194057,1748082636487,-203.69,0.00022191,3]
[362194058,1748082636496,-430.0,0.00022191,3]
[362194059,1748082636505,-615.14,0.00022191,3]
[362194060,1748082636514,-979.6,0.00022191,3]
[362194061,1748082636522,-534.74009,0.00022191,3]
[362194062,1748082636532,-287.67,0.00022191,3]
[362194063,1748082636541,-437.34,0.00022191,3]
[362194064,1748082636550,-430.0,0.00022191,3]
[362194065,1748082636559,-430.0,0.00022191,3]
[362194066,1748082636568,-430.0,0.00022191,3]
[362194067,1748082636578,-430.0,0.00022191,3]
[362194068,1748082636588,-210.56416107,0.00022191,3]
[362194069,1748082636597,-500.04,0.00022191,3]
[362194070,1748082636606,-161.79,0.00022191,3]
[362194071,1748082636615,-430.0,0.00022191,3]
[362194072,1748082636624,-245.92,0.00022191,3]
[362194073,1748082636633,-430.0,0.00022191,3]
[362194074,1748082636642,-430.0,0.00022191,3]
[362194075,1748082636651,-404.42614212,0.00022191,3]
[362194076,1748082636660,-430.0,0.00022191,3]
[362194077,1748082636669,-430.0,0.00022191,3]
[362194078,1748082636677,-490.0,0.00022191,3]
[362194079,1748082636686,-500.0,0.00022191,3]
[362194080,1748082636695,-410.0,0.00022191,3]
[362194081,1748082636704,-430.0,0.00022191,3]
[362194082,1748082636713,-430.0,0.00022191,3]
[362194083,1748082636722,-430.0,0.00022191,3]
[362194084,1748082636731,-430.0,0.00022191,3]
[362194085,1748082636740,-420.0,0.00022191,3]
[362194086,1748082636749,-430.0,0.00022191,3]
[362194087,1748082636758,-430.0,0.00022191,3]
[362194088,1748082636767,-430.0,0.00022191,3]
[362194089,1748082636776,-430.0,0.00022191,3]
[362194090,1748082636785,-430.0,0.00022191,3]
[362194091,1748082636793,-430.0,0.00022191,3]
[362194092,1748082636802,-450.0,0.00022191,3]
[362194093,1748082636811,-430.0,0.00022191,3]
[362194094,1748082636820,-220.171814,0.00022191,3]
[362194095,1748082636829,-430.0,0.00022191,3]
[362194096,1748082636839,-430.0,0.00022191,3]
[362194097,1748082636847,-430.0,0.00022191,3]
[362194098,1748082636857,-430.0,0.00022191,3]
[362194099,1748082636867,-207.44756966,0.00022191,3]
[362194100,1748082636876,-402.68366557,0.00022191,3]
[362194101,1748082636886,-430.0,0.00022191,3]
[362194102,1748082636895,-430.0,0.00022191,3]
[362194103,1748082636904,-430.0,0.00022191,3]
[362194104,1748082636913,-430.0,0.00022191,3]
[362194105,1748082636924,-514.21,0.00022191,3]
[362194106,1748082636936,-430.0,0.00022191,3]
[362194107,1748082636947,-430.0,0.00022191,3]
[362194108,1748082636960,-430.0,0.00022191,3]
[362194109,1748082636974,-430.0,0.00022191,3]
[362194110,1748082636987,-430.0,0.00022191,3]
[362194111,1748082636999,-430.0,0.00022191,3]
[362194112,1748082637011,-430.0,0.00022191,3]
[362194113,1748082637021,-430.0,0.00022191,3]
[362194114,1748082637033,-810.92,0.00022191,3]
[362194115,1748082637045,-430.0,0.00022191,3]
[362194116,1748082637056,-430.0,0.00022191,3]
[362194117,1748082637068,-430.0,0.00022191,3]
[362194118,1748082637080,-430.0,0.00022191,3]
[362194119,1748082637094,-288.78965009,0.00022191,3]
[362194120,1748082637106,-430.0,0.00022191,3]
[362194121,1748082637116,-430.0,0.00022191,3]
[362194122,1748082637128,-942.19,0.00022191,3]
[362194123,1748082637140,-430.0,0.00022191,3]
[362194124,1748082637153,-430.0,0.00022191,3]
[362194125,1748082637164,-430.0,0.00022191,3]
[362194126,1748082637175,-430.0,0.00022191,3]
[362194127,1748082637186,-430.0,0.00022191,3]
[362194128,1748082637198,-430.0,0.00022191,3]
[362194129,1748082637210,-476.5160786,0.00022191,3]
[362194130,1748082637223,-430.0,0.00022191,3]
[362194131,1748082637236,-314.7704918,0.00022191,3]
[362194132,1748082637250,-430.0,0.00022191,3]
[362194133,1748082637262,-608.82,0.00022191,3]
[362194134,1748082637273,-430.0,0.00022191,3]
[362194135,1748082637285,-500.0,0.00022206,2]
[362194136,1748082637296,-500.0,0.00022206,2]
[362194137,1748082637306,-500.0,0.00022206,2]
[362194138,1748082637320,-502.61462071,0.00022206,2]
[362194139,1748082637332,-500.0,0.00022206,2]
[362194140,1748082637342,-500.0,0.00022224,2]
[362194141,1748082637353,-505.35548072,0.00022224,2]
[362194142,1748082637365,-460.7295299,0.00022224,2]
[362194143,1748082637376,-504.13823928,0.00022224,2]
[362194144,1748082637388,-502.59956458,0.00022224,2]
[362194145,1748082637399,-500.0,0.00022224,2]
[362194146,1748082637411,-501.23841726,0.00022224,2]
[362194147,1748082637424,-443.09559877,0.00022293,2]
[362194148,1748082637436,-599.99774836,0.00022344,2]
[362194149,1748082637448,-237.0,0.00022348,2]
[362194150,1748082637461,-420.0,0.00022348,2]
[362194151,1748082637471,-500.0,0.0002235,2]
[362194152,1748082637482,-500.0,0.00022368,2]
[362194153,1748082637491,-503.63052869,0.00022368,2]
[362194154,1748082637501,-343.92093445,0.00022368,2]
[362194155,1748082637512,-212.51988043,0.00022452,2]
[362194156,1748082637524,-1680.0,0.00022455,2]
[362194157,1748082637537,-204.59748749,0.00022465,3]
[362194158,1748082637549,-173.65366645,0.00022465,3]
[362194170,1748082638451,-300.0,0.00021067,2]
[362194171,1748082638462,-430.0,0.00021917,3]
[362194172,1748082638473,-430.0,0.00021917,3]
[362194173,1748082638484,-430.0,0.00021917,3]
[362194174,1748082638495,-430.0,0.00021917,3]
[362194175,1748082638505,-320.0,0.00021917,3]
[362194176,1748082638515,-430.0,0.00022191,3]
[362194177,1748082638524,-430.0,0.00022191,3]
[362194178,1748082638533,-430.0,0.00022191,3]
[362194179,1748082638542,-256.34633355,0.00022465,3]
[362194180,1748082638551,-430.0,0.00022465,3]
[362194181,1748082638560,-430.0,0.00022465,3]
[362194182,1748082638570,-430.0,0.00022465,2]
[362194183,1748082638579,-430.0,0.00022465,3]
[362194184,1748082638589,-430.0,0.00022465,3]
[362194185,1748082638598,-430.0,0.00022465,3]
[362194186,1748082638607,-430.0,0.00022465,3]
[362194187,1748082638616,-615.14,0.00022465,3]
[362194188,1748082638625,-979.6,0.00022465,3]
[362194189,1748082638635,-174.38,0.00022465,3]
[362194190,1748082638783,-430.0,0.00022465,3]
[362194191,1748082638796,-430.0,0.00022465,3]
[362194192,1748082638805,-430.0,0.00022465,3]
[362194193,1748082638815,-430.0,0.00022465,3]
[362194194,1748082638824,-430.0,0.00022465,3]
[362194195,1748082638834,-430.0,0.00022465,3]
[362194196,1748082638843,-430.0,0.00022465,3]
[362194197,1748082638852,-430.0,0.00022465,3]
[362194198,1748082638861,-430.0,0.00022465,3]
[362194199,1748082638871,-514.21,0.00022465,3]
[362194200,1748082638880,-430.0,0.00022465,3]
[362194201,1748082638890,-430.0,0.00022465,3]
[362194202,1748082638899,-261.58,0.00022465,3]
[362194203,1748082638908,-810.92,0.00022465,3]
[362194204,1748082638917,-430.0,0.00022465,3]
[362194205,1748082638929,-430.0,0.00022465,3]
[362194206,1748082638938,-430.0,0.00022465,3]
[362194207,1748082638947,-430.0,0.00022465,3]
[362194208,1748082638956,-430.0,0.00022465,3]
[362194209,1748082638965,-942.19,0.00022465,3]
[362194210,1748082638976,-455.47305055,0.00022465,3]
[362194211,1748082638986,-430.0,0.00022465,3]
[362194212,1748082638994,-430.0,0.00022465,3]
[362194213,1748082639004,-430.0,0.00022465,3]
[362194214,1748082639012,-430.0,0.00022465,3]
[362194215,1748082639022,-608.82,0.00022465,3]
[362194216,1748082639031,-430.0,0.00022465,3]
[362194217,1748082639040,-430.0,0.00022465,3]
[362194218,1748082639049,-443.09559877,0.00022496,2]
[362194219,1748082639059,-279.66729924,0.00022557,2]
[362194220,1748082639068,-203.46009391,0.0002265,7]
[362194221,1748082639077,-443.09559877,0.00022698,2]
[362194222,1748082639088,-160.0,0.00022738,2]
[362194223,1748082639098,-430.0,0.00022739,3]
[362194224,1748082639108,-430.0,0.00022739,3]
[362194225,1748082639117,-430.0,0.00022739,3]
[362194226,1748082639126,-430.0,0.00022739,2]
[362194227,1748082639137,-430.0,0.00022739,3]
[362194228,1748082639147,-430.0,0.00022739,3]
[362194229,1748082639156,-430.0,0.00022739,3]
[362194230,1748082639165,-430.0,0.00022739,3]
[362194231,1748082639175,-615.14,0.00022739,3]
[362194232,1748082639184,-979.6,0.00022739,3]
[362194233,1748082639196,-430.0,0.00022739,3]
[362194234,1748082639205,-430.0,0.00022739,3]
[362194235,1748082639215,-430.0,0.00022739,3]